Cogmind - Beta 13 @@@ ROGUE MODE // 2024.04.13 @ 21:54:31 Player: SovietPaperclip Result: Self-destructed Performance ------------- Evolutions (0) 0 Regions Visited (4) 800 Robots Destroyed (33) 165 Value Destroyed (616) 616 Prototype IDs (0) 0 Alien Tech Used (0) 0 Bonus (50) 50 TOTAL SCORE: 1631 Bonus ------- Follower Combat Kills 50 Cogmind --------- Core Integrity 165/250 Matter 280/300 Energy 250/250 System Corruption 5% Temperature Cool (21) Movement Treading (240) Ox1 Location -9/Mines Parts ------- > --- POWER (1) -------- Ion Engine > --- PROPULSION (2) --- Light Treads (fused) > --- UTILITY (2) ------ Large Storage Unit > --- WEAPON (2) ------- (None) > --- INVENTORY (15) --- Light Nuclear Core Light Treads Light Treads Flying Fortress v7 Cargo Storage Unit High-capacity Matter Pod (200) Makeshift Terrain Scanner Beam Cannon Beam Cannon Rocket Launcher Makeshift Axe Peak State ------------ > --- POWER ------------ Ion Engine > --- PROPULSION ------- Light Treads Light Treads > --- UTILITY ---------- Improved Heat Sink Large Storage Unit > --- WEAPON ----------- Beam Cannon Rocket Launcher > --- INVENTORY -------- Light Nuclear Core Light Treads Light Treads Flying Fortress v7 Cargo Storage Unit High-capacity Matter Pod Makeshift Terrain Scanner Beam Cannon Beam Cannon Beam Cannon Makeshift Axe [Rating: 15] Favorites ----------- Power Ion Engine Engine Ion Engine Propulsion Light Treads Treads Light Treads Utility Large Storage Unit Device Improved Heat Sink Storage Large Storage Unit Weapon Beam Cannon Energy Gun EM Pulse Gun Energy Cannon Beam Cannon Ballistic Gun Light Assault Rifle Launcher Rocket Launcher Build | -11 -10 -10 -10 -9 ------- Run | Yrd Mat Min Exi Min Slots Evolved . | . . . . . Power . | . . . . . Propulsion . | . . . . . Utility . | . . . . . Weapon . | . . . . . Parts Attached 17 | 6 5 4 . 2 Power 3 | 1 1 1 . . Engine 3 | 1 1 1 . . Core . | . . . . . Reactor . | . . . . . Propulsion 3 | 2 1 . . . Treads 3 | 2 1 . . . Leg . | . . . . . Wheel . | . . . . . Hover . | . . . . . Flight . | . . . . . Utility 3 | 1 1 1 . . Device 1 | . . 1 . . Storage 2 | 1 1 . . . Processor . | . . . . . Hackware . | . . . . . Protection . | . . . . . Artifact . | . . . . . Weapon 8 | 2 2 2 . 2 Energy Gun 1 | 1 . . . . Energy Cannon 4 | . 2 1 . 1 Ballistic Gun 1 | 1 . . . . Ballistic Cannon . | . . . . . Launcher 2 | . . 1 . 1 Special Weapon . | . . . . . Impact Weapon . | . . . . . Slashing Weapon . | . . . . . Piercing Weapon . | . . . . . Special Melee Weapon . | . . . . . Unidentified Prototypes . | . . . . . Parts Lost 6 | . 1 1 . 4 Power 2 | . 1 1 . . Propulsion 1 | . . . . 1 Utility 1 | . . . . 1 Weapon 2 | . . . . 2 Highest Loss Streak 3 | . 1 1 . 3 To Critical Strikes . | . . . . . Average Slot Usage (%) 93 | . 85 98 100 90 Engine 14 | . 14 14 14 14 Treads 27 | . 28 28 28 27 Device 8 | . . 12 14 5 Storage 14 | . 14 14 14 14 Energy Gun 2 | . 7 . . . Energy Cannon 22 | . 12 28 28 18 Ballistic Gun 2 | . 7 . . . Launcher 1 | . . . . 9 Naked Turns . | . . . . . Heaviest Build 33 | 11 29 32 32 33 Greatest Support 40 | 40 40 40 40 40 Greatest Overweight (x) 1 | . . . . 1 Average Overweight (x) . | . . . . . Largest Inventory Capacity 15 | 8 15 15 15 15 Average Capacity 14 | 6 14 15 15 15 Most Carried 15 | 4 9 11 15 15 Average Carried 9 | 2 5 10 13 15 Final Capacity 15 | 8 15 15 15 15 Final Carried 15 | 2 7 11 15 15 Class Distribution -------------------- 100% | Mutant Dominant Class ---------------- Mutant | -10/Materials Mutant | -10/Mines Mutant | -10/Exiles Mutant | -9/Mines Resources | -11 -10 -10 -10 -9 ----------- Run | Yrd Mat Min Exi Min Matter Collected 671 | 263 262 64 . 82 Remotely . | . . . . . Salvage Created 1119 | 78 515 444 . 82 Parts 65 | 2 28 35 . . Haulers Intercepted 1 | . 1 . . . Recyclers Shooed 8 | . 8 . . . Parts Field Recycled . | . . . . . Retrieved Matter . | . . . . . Parts Self-Destructed . | . . . . . Prevented . | . . . . . Kills | -11 -10 -10 -10 -9 ------- Run | Yrd Mat Min Exi Min Combat Hostiles Destroyed 35 | . 5 17 . 13 Guns 2 | . 2 . . . Cannons 17 | . . 14 . 3 AOE 16 | . 3 3 . 10 Classes Destroyed 8 | 1 6 . . 1 Worker 2 | . 1 1 . . Builder 1 | . 1 . . . Hauler 1 | . 1 . . . Recycler 5 | 1 4 . . . Watcher 2 | . 2 . . . Swarmer 12 | . 3 9 . . Grunt 10 | . 2 8 . . Assembled 13 | . . . . 13 Best Kill Streak 11 | 1 9 3 . 11 Combat Bots Only 11 | . 5 3 . 11 Max Kills in Single Turn 4 | 1 2 3 . 4 Gunslinging . | . . . . . Exploded 4 | . 2 3 . 4 Melee . | . . . . . Uniques/NPCs Destroyed . | . . . . . Combat | -11 -10 -10 -10 -9 -------- Run | Yrd Mat Min Exi Min Hostile Shots Fired 92 | . 21 58 . 13 Missed 29 | . 4 22 . 3 Damage Taken 996 | . 237 375 . 384 Core 85 | . 13 53 . 19 Absorbed by Shields . | . . . . . Core Remaining (%) 100 | 100 . . . . Volleys Fired 93 | 3 34 43 . 13 Largest 2 | 2 2 2 . 2 Hottest 120 | 60 120 120 . 120 Shots Fired 182 | 6 68 86 . 22 Gun 66 | 6 60 . . . Cannon 106 | . 8 85 . 13 Launcher 10 | . . 1 . 9 Special . | . . . . . Kinetic 33 | 3 30 . . . Thermal 106 | . 8 85 . 13 Explosive 10 | . . 1 . 9 Electromagnetic 33 | 3 30 . . . Robot Hit Streak 7 | 3 6 7 . 3 Robot Miss Streak 4 | 1 3 4 . 3 Penetration Max . | . . . . . Secondary Targets 2 | . 2 . . . Max Gunslinging Chain 1 | . 1 . . . Shots Hit Robots 99 | 4 36 51 . 8 Core Hits 70 | 2 24 22 . 22 Critical Kills . | . . . . . Critical Parts Destroyed . | . . . . . Critical Strikes 1 | . 1 . . . Corrupt 1 | . 1 . . . Melee Attacks . | . . . . . Impact . | . . . . . Slashing . | . . . . . Piercing . | . . . . . Sneak Attacks . | . . . . . Combat Hostiles . | . . . . . Follow-up Attacks . | . . . . . Damage Inflicted 2399 | 37 693 1090 . 579 Guns 421 | 37 384 . . . Cannons 1144 | . 87 937 . 120 Explosions 834 | . 222 153 . 459 Melee . | . . . . . Ramming . | . . . . . Kinetic 172 | 24 148 . . . Thermal 1366 | . 309 937 . 120 Explosive 612 | . . 153 . 459 Electromagnetic 249 | 13 236 . . . Impact . | . . . . . Slashing . | . . . . . Piercing . | . . . . . Highest Corruption 5 | . . . . 5 Average Corruption 5 | . . . . 5 Corruption Purged . | . . . . . Corruption Blocked . | . . . . . Effects 3 | . . . . 3 Energy Discharges 1 | . . . . 1 Parts Fused 1 | . . . . 1 Misfires 1 | . . . . 1 Overload Shots . | . . . . . Overflow Damage 18 | . 15 . . 3 Projectiles 13 | . 10 . . 3 Explosions 5 | . 5 . . . Melee . | . . . . . Knockbacks . | . . . . . Impact . | . . . . . Kinetic . | . . . . . Secondary . | . . . . . Self-Inflicted Damage 80 | . 51 . . 29 Shots 3 | . 2 . . 1 Rammed . | . . . . . Targets Rammed . | . . . . . Kicked . | . . . . . Crushed . | . . . . . Highest Temperature 240 | 10 87 240 . 66 Average Temperature 55 | 7 26 81 . 28 Received Heat Transfer 174 | . 69 105 . . Siege Activations . | . . . . . Robots Corrupted . | . . . . . Combat Hostiles . | . . . . . Parts Fried . | . . . . . Impact Corruptions . | . . . . . Robots Melted . | . . . . . Combat Hostiles . | . . . . . Parts Melted 8 | . . 8 . . Heat Transferred 2642 | . 385 1998 . 259 Parts Sabotaged . | . . . . . Parts Stolen . | . . . . . Parts Stripped . | . . . . . Power Chain Reactions 3 | . 3 . . . Alert | -11 -10 -10 -10 -9 ------- Run | Yrd Mat Min Exi Min Peak Influence 275 | 5 210 275 . 66 Initial 3 | . 3 . . . Average 104 | 2 80 163 . 27 Maximum Alert Level 1 | . 1 1 . . Low Security (%) 73 | 100 84 51 . 100 Level 1 26 | . 15 48 . . Level 2 . | . . . . . Level 3 . | . . . . . Level 4 . | . . . . . Level 5 . | . . . . . High Security . | . . . . . Max Security . | . . . . . Squads Dispatched . | . . . . . Investigation . | . . . . . Extermination . | . . . . . Reinforcement . | . . . . . Assault . | . . . . . Garrison . | . . . . . Intercept . | . . . . . Searches Triggered . | . . . . . Construction Impeded . | . . . . . Haulers Reinforced . | . . . . . Active Scanning Responses . | . . . . . Cargo Convoy Interrupts . | . . . . . Stealth | -11 -10 -10 -10 -9 --------- Run | Yrd Mat Min Exi Min Distress Signals 2 | . 1 . . 1 Communications Jammed . | . . . . . Distress Signals . | . . . . . Times Spotted 42 | . 13 16 . 13 Peak Tracking Total 7 | . 7 3 . 4 Tactical Retreats . | . . . . . Traps | -11 -10 -10 -10 -9 ------- Run | Yrd Mat Min Exi Min Traps Triggered 1 | . 1 . . . Indirectly . | . . . . . Trap Hack Attempts . | . . . . . Triggered . | . . . . . Disarmed . | . . . . . Reprogrammed . | . . . . . Reused . | . . . . . Traps Extracted . | . . . . . Installed . | . . . . . Triggered . | . . . . . Machines | -11 -10 -10 -10 -9 ---------- Run | Yrd Mat Min Exi Min Machines Disabled 2 | . 1 1 . . Max in Single Turn 1 | . 1 1 . . Machines Repaired . | . . . . . Machines Dismantled . | . . . . . Machines Sabotaged . | . . . . . Overloaded Fab Kills . | . . . . . Hacking | -11 -10 -10 -10 -9 --------- Run | Yrd Mat Min Exi Min Machines Accessed 4 | . 3 . 1 . Terminals 3 | . 3 . . . Fabricators . | . . . . . Repair Stations . | . . . . . Recycling Units . | . . . . . Scanalyzers . | . . . . . Garrison Access . | . . . . . Total Hacks 8 | . 7 . 1 . Successful 4 | . 3 . 1 . Failed 4 | . 4 . . . Catastrophic 1 | . 1 . . . Database Lockouts . | . . . . . Manual 1 | . . . 1 . Terminals 7 | . 7 . . . Fabricators . | . . . . . Repair Stations . | . . . . . Recycling Units . | . . . . . Scanalyzers . | . . . . . Garrison Access . | . . . . . Terminal Hacks 4 | . 3 . 1 . Record 1 | . . . 1 . Branch Access Points 1 | . 1 . . . Unreport Threat 1 | . 1 . . . Locate Traps 1 | . 1 . . . Fabricator Hacks . | . . . . . Repair Station Hacks . | . . . . . Recycling Unit Hacks . | . . . . . Scanalyzer . | . . . . . Garrison Access Hacks . | . . . . . Unauthorized Hacks . | . . . . . Terminals . | . . . . . Fabricators . | . . . . . Repair Stations . | . . . . . Recycling Units . | . . . . . Scanalyzers . | . . . . . Garrison Access . | . . . . . Data Cores Recovered . | . . . . . Used . | . . . . . Hacking Detections 2 | . 2 . . . Full Trace Events . | . . . . . Feedback Events . | . . . . . Feedback Blocked . | . . . . . Robot Schematics Acquired . | . . . . . Robots Built . | . . . . . Authchips . | . . . . . Time . | . . . . . Total Robot Build Rating . | . . . . . Part Schematics Acquired . | . . . . . Parts Built . | . . . . . Authchips . | . . . . . Time . | . . . . . Total Part Build Rating . | . . . . . Parts Repaired . | . . . . . Time . | . . . . . Parts Recycled . | . . . . . Recycled Matter . | . . . . . Retrieved Matter . | . . . . . Retrieved Components . | . . . . . Parts Scanalyzed . | . . . . . Part Schematics Acquired . | . . . . . Parts Damaged . | . . . . . Bothacking | -11 -10 -10 -10 -9 ------------ Run | Yrd Mat Min Exi Min Used RIF Installer . | . . . . . Robots Hacked . | . . . . . Non-combat . | . . . . . Combat . | . . . . . Robot Hacks Applied . | . . . . . Relay Couplers Released . | . . . . . Fabnet Peak Effective % . | . . . . . Robots Rewired . | . . . . . Allies Hacked . | . . . . . Hacks Repelled . | . . . . . Allies | -11 -10 -10 -10 -9 -------- Run | Yrd Mat Min Exi Min Total Allies 1 | . . 1 . . Largest Group 1 | . . 1 1 . Highest-Rated Group 31 | . . 31 31 . Highest-Rated Ally 31 | . . 31 31 . Total Orders . | . . . . . Ally Attacks 10 | . . . 10 . Total Damage 190 | . . . 190 . Kills 2 | . . . 2 . Allies Corrupted . | . . . . . Allies Melted . | . . . . . Intel | -11 -10 -10 -10 -9 ------- Run | Yrd Mat Min Exi Min Robot Analysis Total . | . . . . . Derelict Logs Recovered 2 | . . 2 . . Drone Launches . | . . . . . Drone Recoveries . | . . . . . Exploration | -11 -10 -10 -10 -9 ------------- Run | Yrd Mat Min Exi Min Turns Passed 2103 | 75 596 764 377 291 Spaces Moved 1117 | 41 294 390 234 158 Core 11 | 11 . . . . Treads 1106 | 30 294 390 234 158 Legs . | . . . . . Wheels . | . . . . . Hover . | . . . . . Flight . | . . . . . Fastest Speed 50 | 50 160 160 160 160 Average Speed 158 | 130 160 160 160 160 Slowest Speed 240 | 160 160 160 160 240 Overloaded Moves . | . . . . . Propulsion Burnouts . | . . . . . Robots Hopped . | . . . . . Cave-ins Triggered . | . . . . . Exploration Rate (%) 47 | 4 54 69 64 48 Regions Visited 4 Branch Regions 3 Pre-discovered Areas 1 | . . . 1 . Known Exits Taken 2 | . 1 1 . . Unknown Exits Taken 2 | 1 . . 1 . Scrap Searched 3 | . . 1 . 2 Spaces Dug 12 | . . . . 12 Terrain Destroyed 110 | . 8 8 . 94 Melee . | . . . . . Projectile . | . . . . . AOE 110 | . 8 8 . 94 Terrain Rammed . | . . . . . Walls Destroyed . | . . . . . Machines Disabled . | . . . . . Actions | -11 -10 -10 -10 -9 --------- Run | Yrd Mat Min Exi Min Total 1271 | 57 360 444 237 173 Wait 12 | . 11 1 . . Move 1113 | 40 293 389 233 158 Hop . | . . . . . Pick Up 28 | 8 12 6 2 . Fast Attach . | . . . . . Attach 13 | 6 5 2 . . Detach . | . . . . . Swap 4 | . . 2 . 2 Drop 7 | . 5 1 1 . Fire 93 | 3 34 43 . 13 Melee . | . . . . . Ram . | . . . . . Kick . | . . . . . Crush . | . . . . . Escape Stasis . | . . . . . Rewire 1 | . . . 1 . Trap . | . . . . . Miscellaneous . | . . . . . Route ------- -11/Scrapyard -10/Materials (discovered 3 exits: [*Mat x2] / *Min) -10/Mines (discovered 2 exits: [*Mat] / *Exi) -10/Exiles (discovered 2 exits: [*Min x2]) -9/Mines History --------- Turn | Location | Event 7 | -11/Scrapyard | Discovered new exit (range 16) 76 | -11/Scrapyard | Entered Materials 136 | -10/Materials | Identified exit to Mines 300 | -10/Materials | Build established: Mutant 388 | -10/Materials | Discovered new exit (range 16) 535 | -10/Materials | Discovered new exit (range 3) 672 | -10/Materials | Entered Mines 712 | -10/Mines | A weapon hastily lodged in a ceiling crevice suddenly fell to the ground 792 | -10/Mines | Identified exit to Exiles 794 | -10/Mines | Received a Rocket Launcher from a helpful Derelict 982 | -10/Mines | Learned Materials trap positions 1060 | -10/Mines | Discovered new exit (range 13) 1409 | -10/Mines | Received a Mining Laser from a helpful Derelict 1430 | -10/Mines | Deemed a non-threat by the Exiles lab entrance 1436 | -10/Mines | Entered Exiles 1436 | -10/Exiles | Found Exiles lab destroyed 1436 | -10/Exiles | Accompanied by 1 ally 1457 | -10/Exiles | Discovered new exit (range 15) 1601 | -10/Exiles | Opened EX-Vault 1605 | -10/Exiles | Found Prototype Flight Unit 1726 | -10/Exiles | Learned location of Zion (-6) 1800 | -10/Exiles | Discovered new exit (range 10) 1813 | -10/Exiles | Entered Mines 1909 | -9/Mines | Assembled infested the area 1966 | -9/Mines | Destroyed 11 combat bots 2104 | -9/Mines | Self-destructed Last Messages --------------- 01998_ Destroyed Asb. Hover Unit. 01998_ as-72679 destroyed. 02001_ Acquired 10 matter. 02005_ The unstable cave ceiling collapses. 02014_ Acquired 14 matter. 02021_ Acquired 3 matter. 02022_ System corrupted: Lgt. Treads fused. 02031_ The unstable cave ceiling collapses. 02046_ U-05 Engineer builds a Wall. 02050_ U-05 Engineer lays Concrete. 02088_ Acquired 20 matter. 02090_ System corrupted: FCS attempts to trigger Beam Cannon. 02090_ System corrupted: Beam Cannon misfires. 02090_ K-01 Serf sends out distress signal. 02096_ R-06 Scavenger destroyed. 02096_ K-01 Serf destroyed. 02099_ Lgt. Treads destroyed. 02104_ The unstable cave ceiling collapses. 02104_ Beam Cannon destroyed. Map ----- +----------------------------------------------------+ | #?????## ##????????????????????????????????? | | ##????##### #????????????????????????????????? | | #?? ##??## #????????????????????????????????? | | ## ##??# #????????????????????????????????? | | ### ##????????????????????????????????? | | % ## " ##?????????????????????????????????? | | % #########??????????????????????????? | | #### #??????????????????????????? | | ####### ## #??????????????????????????? | | ## ?########## #??????????????????????????? | | ##%???????????# #??????????????????????????? | | # #????????# #??????????????????????????? | | ?? % ##????????# #??????????????????????????? | | ??? #% #????????# #??????????????????????????? | | ?????# #????????# #??????????????????????????? | | ?????? ????????# #??????????????????????????? | | ??????? ????????# #??????????????????????????? | | ????????? ?????????# #??????????????????????????? | | ?????????? ?????????# ##?????????????????????????? | | ???????????????????## #####?????????????????????? | | ???????????????????# ##????????????????????? | | ???????????????????## ##?#?????????????????? | | ???????????????????# # #?????????????????? | | ???????????????????# #?????????????????? | | ???????????????????# # #??????????????? | | ???????????????????# @ #?????????????? | | ???????????????????# % #????????????? | | ???????????????????## ! % ?????????? | | ??????????????????? = % ?????????? | | ????????????????? dd ##?????????? | | ??????????????? ####### % ??????????? | | ????????????? #??????? ! ??????????? | | ???????????? #???????? ## ??????????? | | ????????????? ##????????? #? ???????????? | | ????????????? ???????????? ?? ???????????? | | ?????????????????????????? #?? #????????????? | | #????????????????????????? #???##????????????? | | ##????????????????????????? #?????????????????? | | ##???????????????????????? ?????????????????? | | #???????????????????????? ???????????????????? | | ##??????????????????????? ?????????????????????? | | #?????????????????????????????????????????????? | | #?????????????????????????????????????????????? | | ##?????????????????????????????????????????????? | | ##??????????????????????????????????????????????? | | #???????????????????????????????????????????????? | | ##???????????????????????????????????????????????? | | #????????????????????????????????????????????????? | | ?????????????????????????????????????????????????? | | ?????????????????????????????????????????????????? | +----------------------------------------------------+ Best States ------------- Heat Dissipation 39 Energy Generation 10 Energy Capacity 250 Matter Stores 300 Matter Capacity 300 Sight Range 16 Terrain Scan Density 10 Evasion (%) 40 Recoil Reduction 2 Item Schematics ----------------- None Robot Schematics ------------------ None Fabricated ------------ Nothing Alien Tech Used ----------------- None Achievements -------------- None Challenges ------------ None Game ------ Seed MetaRainbowActivator Manual? 0 Play Time 00:13:03 Cumulative 87.4 hours Start 2024.04.13 @ 21:42:55 End 2024.04.13 @ 21:54:31 Sessions 1 Manual Loads 0 Difficulty Rogue Special Mode None Game No. 105 Rogue 105 Adventurer 0 Explorer 0 Win Type - Total 1 Types 1/0/0/0/0/0/0/0/0 Lore% 42 Gallery% 47 Achievement% 44 Wizard Run 0 Options --------- Layout 1 ASCII 0 Keyboard 0 Movement Mouse Keybinds 0 Fullscreen 2 Font 32/Smallcaps Map View 50x40 Zoom Use 0% Tactical HUD 1 Map Filters NONE Filters NONE Steam 1 RUN: 63544467-049b-4e67-a0f2-81f028520701